fUSD/lending_fUSD_20240327
["ID","MTS","AMOUNT","RATE_DAILY","PERIOD"]
[320714000,1711527052318,-7875.62,0.00054794,120]
[320714001,1711527052329,-500.0,0.00054794,120]
[320714002,1711527052340,-21006.38,0.00054794,120]
[320714003,1711527052351,-301.10312987,0.00054794,120]
[320714004,1711527052362,-5543.42,0.00054794,21]
[320714005,1711527052371,-679.88,0.00054794,120]
[320714006,1711527052381,-500.0,0.00054794,55]
[320714007,1711527052390,-594.6254659,0.00054794,2]
[320714008,1711527052399,-2577.33,0.00054794,120]
[320714009,1711527052409,-514.10805606,0.00054794,120]
[320714010,1711527052418,-511.21289656,0.00054794,120]
[320714011,1711527052427,-509.69957309,0.00054794,120]
[320714012,1711527052436,-2640.08,0.00054794,120]
[320714013,1711527052445,-1342.8,0.00054794,120]
[320714014,1711527052455,-1063.68,0.00054794,120]
[320714015,1711527052464,-500.0,0.00054794,120]
[320714016,1711527052473,-509.74994983,0.00054794,120]
[320714017,1711527052483,-2378.26,0.00054794,120]
[320714018,1711527052494,-1935.51,0.00054794,120]
[320714019,1711527052504,-2223.57,0.00054794,120]
[320714020,1711527052514,-510.8839795,0.00054794,120]
[320714021,1711527052525,-528.37,0.00054794,120]
[320714022,1711527052535,-510.38642701,0.00054794,120]
[320714023,1711527052544,-500.0,0.00054794,120]
[320714024,1711527052553,-993.08,0.00054794,120]
[320714025,1711527052562,-516.1,0.00054794,120]
[320714026,1711527052571,-1132.39,0.00054794,120]
[320714027,1711527052580,-506.91315478,0.00054794,120]
[320714028,1711527052590,-11522.47,0.00054794,120]
[320714029,1711527052604,-1928.69,0.00054794,120]
[320714030,1711527052615,-500.0,0.00054794,120]
[320714031,1711527052625,-508.18394948,0.00054794,120]
[320714032,1711527052635,-1255.09,0.00054794,120]
[320714033,1711527052645,-813.69,0.00054794,120]
[320714034,1711527052655,-500.0,0.00054794,120]
[320714035,1711527052665,-386.19305244,0.00054794,120]
[320714036,1711527052676,-979.95,0.00054794,120]
[320714037,1711527052686,-11267.95,0.00054794,120]
[320714038,1711527052696,-500.0,0.00054794,120]
[320714039,1711527052706,-1666.38,0.00054794,120]
[320714040,1711527052717,-347.43965606,0.00054794,2]
[320714041,1711527052727,-509.04558715,0.00054794,120]
[320714042,1711527052740,-1167.06,0.00054794,120]
[320714043,1711527052750,-500.0,0.00054794,120]
[320714044,1711527052761,-500.0,0.00054794,120]
[320714045,1711527052771,-1622.95,0.00054794,120]
[320714046,1711527052781,-500.0,0.00054794,120]
[320714047,1711527052792,-505.88886333,0.00054794,120]
[320714048,1711527052802,-997.7,0.00054794,120]
[320714049,1711527052812,-1369.51,0.00054794,120]
[320714050,1711527052821,-694.02,0.00054794,120]
[320714051,1711527052831,-500.0,0.00054794,120]
[320714052,1711527052841,-507.10901681,0.00054794,120]
[320714053,1711527052851,-831.23,0.00054794,120]
[320714054,1711527052861,-1603.44,0.00054794,120]
[320714055,1711527052871,-800.55,0.00054794,120]
[320714056,1711527052882,-1222.94,0.00054794,120]
[320714057,1711527052892,-496.49932834,0.00054794,120]
[320714058,1711527052902,-500.0,0.00054794,120]
[320714059,1711527052912,-2190.54,0.00054794,120]
[320714060,1711527052922,-500.0,0.00054794,120]
[320714061,1711527052932,-500.0,0.00054794,120]
[320714062,1711527052942,-5922.02,0.00054794,120]
[320714063,1711527052953,-1348.83,0.00054794,120]
[320714064,1711527052964,-1497.62,0.00054794,120]
[320714065,1711527052974,-760.47,0.00054794,120]
[320714066,1711527052984,-510.36412669,0.00054794,120]
[320714067,1711527052994,-500.0,0.00054794,120]
[320714068,1711527053003,-9657.87,0.00054794,120]
[320714069,1711527053017,-509.17947179,0.00054794,120]
[320714070,1711527053027,-1069.73,0.00054794,120]
[320714071,1711527053037,-500.0,0.00054794,120]
[320714072,1711527053046,-8976.33,0.00054794,120]
[320714073,1711527053056,-634.97,0.00054794,120]
[320714074,1711527053067,-507.56528631,0.00054794,120]
[320714075,1711527053077,-1326.89,0.00054794,120]
[320714076,1711527053087,-2023.22,0.00054794,120]
[320714077,1711527053098,-536.14484072,0.00054794,4]
[320714078,1711527053110,-500.0,0.00054794,120]
[320714079,1711527053120,-506.07411523,0.00054794,120]
[320714080,1711527053130,-3144.27994285,0.00054794,120]
[320714081,1711527053534,-1607.34005715,0.00054794,120]
[320714082,1711527053543,-400.68001201,0.00054794,120]
[320714083,1711527053555,-279.96736045,0.00054794,120]
[320714084,1711527053567,-593.69262754,0.00054794,120]
[320714085,1711527053576,-500.0,0.00054794,2]
[320714086,1711527053586,-1949.65,0.00054794,120]
[320714087,1711527053598,-200.0,0.00054795,120]
[320714088,1711527053608,-200.0,0.00054795,120]
[320714089,1711527053618,-800.0,0.00054795,120]
[320714090,1711527053627,-800.0,0.00054795,120]
[320714091,1711527053637,-500.0,0.00054795,30]
[320714092,1711527053646,-500.0,0.00054795,30]
[320714093,1711527053656,-200.0,0.00054795,30]
[320714094,1711527053666,-200.0,0.00054795,30]
[320714095,1711527053676,-1000.0,0.00054795,120]
[320714096,1711527053687,-150.0,0.00054798,14]
[320714097,1711527053696,-3449.0,0.000548,120]
[320714098,1711527053706,-1000.0,0.000548,20]
[320714099,1711527053716,-1500.0,0.00054804,14]
[320714100,1711527053896,-150.0,0.00054808,14]
[320714101,1711527053905,-150.0,0.00054823,14]
[320714102,1711527053915,-150.0,0.00054832,14]
[320714103,1711527053924,-150.0,0.00054832,14]
[320714104,1711527053942,-150.0,0.00054835,14]
[320714105,1711527053956,-150.0,0.00054838,14]
[320714106,1711527053967,-1274.24618838,0.00054838,120]
[320714107,1711527053977,-150.0,0.00054839,14]
[320714108,1711527053987,-150.0,0.00054839,14]
[320714109,1711527053998,-150.0,0.00054851,14]
[320714110,1711527054008,-150.0,0.00054867,14]
[320714111,1711527054018,-1500.0,0.00054874,14]
[320714112,1711527054029,-150.0,0.00054885,14]
[320714113,1711527054039,-154.14604573,0.00054891,14]
[320714114,1711527054049,-1284.2237776,0.00054891,2]
[320714115,1711527054059,-150.0,0.00054894,14]
[320714116,1711527054069,-23276.57668381,0.000549,30]
[320714117,1711527054079,-1000.0,0.000549,20]
[320714118,1711527054089,-150.0,0.00054906,14]
[320714119,1711527054099,-300.0,0.00054907,14]
[320714120,1711527054108,-150.0,0.00054915,14]
[320714121,1711527054118,-150.0,0.00054915,14]
[320714122,1711527054128,-1538.10067746,0.00054916,120]
[320714123,1711527054138,-1500.0,0.00054924,14]
[320714124,1711527054148,-300.0,0.00054925,14]
[320714125,1711527054158,-428.75879949,0.00054925,14]
[320714126,1711527054168,-150.0,0.00054927,14]
[320714127,1711527054178,-300.0,0.00054928,14]
[320714128,1711527054187,-150.0,0.00054938,14]
[320714129,1711527054197,-150.0,0.00054944,14]
[320714130,1711527054207,-150.0,0.00054953,14]
[320714131,1711527054217,-150.0,0.00054956,14]
[320714132,1711527054227,-150.0,0.00054967,14]
[320714133,1711527054237,-300.0,0.0005497,14]
[320714134,1711527054248,-150.0,0.00054971,14]
[320714135,1711527054258,-150.0,0.00054978,14]
[320714136,1711527054268,-150.0,0.00054989,14]
[320714137,1711527054278,-150.0,0.00054994,14]
[320714138,1711527054288,-9576.61355682,0.00055,2]
[320714139,1711527054303,-3783.29395424,0.00055,2]
[320714140,1711527054325,-1594.63953994,0.00055,2]
[320714141,1711527054335,-2004.89676574,0.00055,5]
[320714142,1711527054345,-5000.0,0.00055,120]
[320714143,1711527054356,-2000.0,0.00055,120]
[320714144,1711527054366,-9462.47538429,0.00055,120]
[320714145,1711527054379,-642.4342944,0.00055,120]
[320714146,1711527054389,-162.3336029,0.00055,120]
[320714147,1711527054649,-671.06,0.000389,30]
[320714148,1711527054664,-745.83403878,0.000389,30]
[320714149,1711527054678,-306.81898525,0.000389,30]
[320714150,1711527054690,-343.33598437,0.000389,30]
[320714151,1711527054723,-1499.93521695,0.000389,30]
[320714152,1711527054735,-1499.97158511,0.000389,30]
[320714153,1711527054747,-10514.65937727,0.000389,30]
[320714154,1711527054759,-300.25019249,0.000389,30]
[320714155,1711527054772,-3023.12445239,0.000389,30]
[320714156,1711527054794,-880.54686907,0.000389,30]
[320714157,1711527054807,-930.0,0.000389,30]
[320714158,1711527054820,-372.64561982,0.000389,30]
[320714159,1711527054833,-1429.76301022,0.000389,30]
[320714160,1711527054847,-14689.10499291,0.000389,30]
[320714161,1711527054860,-2782.58810981,0.000389,30]
[320714162,1711527054873,-23166.7986036,0.000389,30]
[320714163,1711527054888,-30225.46104,0.000389,30]
[320714164,1711527055496,-675.08,0.000389,30]
[320714165,1711527055525,-8103.41821597,0.000389,30]
[320714166,1711527055615,-1139.712585,0.000389,30]
[320714167,1711527055636,-725.39425653,0.000389,30]
[320714168,1711527055672,-4029.77812138,0.000389,30]
[320714169,1711527056135,-17099.71461482,0.000389,30]
[320714170,1711527056148,-40835.00780524,0.000389,30]
[320714171,1711527056162,-305.4084,0.000389,30]
[320714172,1711527056175,-2343.36758848,0.000389,30]
[320714173,1711527057064,-52829.73610133,0.000389,30]
[320714174,1711527057087,-1079.69506357,0.000389,30]
[320714175,1711527110639,-14490.0,0.00025106,2]
[320714176,1711527165915,-1.28133339,0.00025106,2]
[320714177,1711527234088,1000.0,0.00038945,120]
[320714178,1711527485243,-189.04697603,0.00031115,4]
[320714179,1711527485266,-6663.90384428,0.00031116,4]
[320714180,1711527485288,-350.35633815,0.00031116,4]
[320714181,1711527485310,-1659.90773867,0.00031117,4]
[320714182,1711527485333,-364.78510287,0.00031118,4]
[320714183,1711527548144,-10035.01600658,0.00031118,4]
[320714184,1711527548171,-0.47657277,0.00031118,4]
[320714185,1711527562254,4.50742065,0.00031118,4]
[320714186,1711527579079,-4892.0,0.00031118,4]
[320714187,1711527705897,-898.15242169,0.00031115,4]
[320714188,1711527705920,-1659.90773867,0.00031116,4]
[320714189,1711527705943,-513.10301923,0.00031117,4]
[320714190,1711527705966,-189.04697603,0.00031117,4]
[320714191,1711527705989,-6663.90384428,0.00031117,4]
[320714192,1711527706011,-0.45451925,0.00031118,4]
[320714193,1711527706034,-651.10307204,0.00031118,4]
[320714194,1711527706063,-9424.32840881,0.00031118,4]
[320714330,1711528032117,-284.99900998,0.00030856,2]
[320714331,1711528032138,-898.15242169,0.00030955,4]
[320714332,1711528032161,-3498.67551331,0.00030956,4]
[320714333,1711528036094,-1054.31608643,0.00030956,4]
[320714340,1711528232393,-405.43595883,0.00030949,4]
[320714341,1711528232403,-49.56402617,0.0003095,4]
[320714342,1711528232415,-105.43597383,0.0003095,4]
[320714343,1711528232424,-898.15242169,0.00030951,4]
[320714344,1711528232433,-240.21091585,0.00030956,2]
[320714345,1711528232443,-822.28495328,0.00030959,4]
[320714346,1711528232452,-155.0,0.0003096,4]
[320714347,1711528232461,-3001.7023,0.00031018,2]
[320714348,1711528232471,-600.36602728,0.00031116,4]
[320714349,1711528232481,-5513.36165559,0.00031116,4]
[320714350,1711528232490,-10664.26163994,0.00031116,4]
[320714351,1711528232499,-1620.67509622,0.00031117,4]
[320714352,1711528232508,-28678.87174059,0.00031118,4]
[320714353,1711528232518,-2342.52,0.00031118,2]
[320714354,1711528232528,-499.99,0.00031118,2]
[320714355,1711528232537,-181.74660482,0.000341,2]
[320714356,1711528232546,-547.76,0.000341,2]
[320714357,1711528232555,-150.99,0.000341,2]
[320714358,1711528232564,-727.0,0.000344,2]
[320714359,1711528232573,-599.09,0.00034772,2]
[320714360,1711528232582,-159.82797874,0.00035008,4]
[320714361,1711528232591,-712.61418707,0.00035998,4]
[320714362,1711528232601,-250.0,0.00036445,2]
[320714363,1711528232610,-901.63,0.00036491,2]
[320714364,1711528232619,-266.2,0.00036631,2]
[320714365,1711528232628,-193.48,0.00036707,2]
[320714366,1711528232638,-1226.68,0.00036758,2]
[320714367,1711528232647,-2694.78,0.00036948,2]
[320714368,1711528232655,-216.90604794,0.00036951,4]
[320714369,1711528232665,-6107.72543655,0.00036951,4]
[320714370,1711528232674,-1952.72398702,0.00036953,4]
[320714371,1711528232683,-599.09,0.00037036,2]
[320714372,1711528232692,-250.0,0.00037106,110]
[320714373,1711528232701,-250.0,0.0003714,2]
[320714374,1711528232710,-3723.52313119,0.00037239,2]
[320714375,1711528232730,-2222.06308697,0.00037239,2]
[320714376,1711528232741,-10405.92670067,0.00037239,2]
[320714377,1711528232752,-2539.86708117,0.00037239,2]
[320714378,1711528232762,-155.66,0.00037327,120]
[320714379,1711528232771,-200.0,0.00037352,2]
[320714380,1711528232781,-5157.75,0.00037449,2]
[320714381,1711528232790,-162.16563957,0.00037487,2]
[320714382,1711528232800,-1000.0,0.00037639,2]
[320714383,1711528232810,-162.16563957,0.00037751,2]
[320714384,1711528232819,-162.16563957,0.00038016,2]
[320714385,1711528232829,-169.92,0.00038195,2]
[320714386,1711528232839,-216.24554068,0.00038271,2]
[320714387,1711528232848,-162.16563957,0.00038281,2]
[320714388,1711528232858,-249.9491637,0.00038509,4]
[320714389,1711528232868,-162.16563957,0.00038546,2]
[320714390,1711528232877,-154.2622302,0.00038794,5]
[320714391,1711528232887,-150.5,0.00038795,5]
[320714392,1711528232896,-162.16563957,0.00038811,2]
[320714393,1711528232906,-216.24554068,0.00038856,2]
[320714394,1711528232915,-216.24554068,0.00038858,2]
[320714395,1711528232925,-216.24554068,0.00038858,2]
[320714396,1711528232934,-216.24554068,0.00038858,2]
[320714397,1711528232943,-216.24554068,0.00038858,2]
[320714398,1711528232956,-156.47735632,0.00038865,4]
[320714399,1711528232966,-155.53871071,0.00038865,4]
[320714400,1711528232975,-319.45413673,0.00038866,4]
[320714401,1711528232985,-4090.24617869,0.00038868,12]
[320714402,1711528233010,-3116.88563209,0.00038868,12]
[320714403,1711528233019,-216.24554068,0.00038887,2]
[320714404,1711528233030,-216.24554068,0.00038887,2]
[320714405,1711528233039,-216.24554068,0.00038887,2]
[320714406,1711528233050,-216.24554068,0.00038888,2]
[320714407,1711528233059,-216.24554068,0.00038888,2]
[320714408,1711528233068,-216.24554068,0.00038888,2]
[320714409,1711528233077,-216.24554068,0.00038889,2]
[320714410,1711528233086,-216.24554068,0.00038889,2]
[320714411,1711528233095,-27.91476947,0.00038889,2]
[320714412,1711528233301,-188.33077121,0.00038889,2]
[320714413,1711528233329,-216.24554068,0.00038889,2]
[320714414,1711528233338,-25.77873248,0.00038889,2]
[320714415,1711528233366,-190.4668082,0.00038889,2]
[320714416,1711528233376,-216.24554068,0.00038889,2]
[320714417,1711528233385,-216.24554068,0.00038889,2]
[320714418,1711528233395,-216.24554068,0.00038889,2]
[320714419,1711528233404,-500.0,0.00038897,15]
[320714420,1711528233413,-500.0,0.00038897,15]
[320714421,1711528233423,-500.0,0.00038897,15]
[320714422,1711528233433,-506.05487921,0.00038897,15]
[320714423,1711528233442,-500.0,0.00038897,15]
[320714424,1711528233451,-500.0,0.00038897,15]
[320714425,1711528233460,-500.0,0.00038897,15]
[320714426,1711528233470,-2341.23836606,0.00038898,4]
[320714427,1711528233480,-166.15643891,0.00038898,4]
[320714428,1711528233489,-205.25446688,0.00038898,4]
[320714429,1711528233498,-940.53414581,0.00038898,4]
[320714430,1711528233507,-613.55627316,0.00038898,4]
[320714431,1711528233518,-280.4640909,0.00038898,4]
[320714432,1711528233527,-360.79039174,0.00038898,4]
[320714433,1711528233536,-155.47530298,0.00038898,4]
[320714434,1711528233545,-3044.32575757,0.00038899,15]
[320714435,1711528233554,-821.13014677,0.00038899,4]
[320714436,1711528233563,-155.75839715,0.00038899,4]
[320714437,1711528233572,-155.73011324,0.00038899,4]
[320714438,1711528233581,-358.38056777,0.00038899,4]
[320714439,1711528233591,-1756.57153444,0.00038899,4]
[320714440,1711528233600,-253.92224754,0.00038899,4]
[320714441,1711528233609,-3505.6650676,0.00038899,4]
[320714442,1711528233618,-590.90258329,0.00038899,2]
[320714443,1711528233627,-155.0,0.00038899,4]
[320714444,1711528233636,-1238.73583062,0.00038899,4]
[320714445,1711528233645,-520.60897951,0.00038899,4]
[320714446,1711528233654,-162.16563957,0.00039076,2]
[320714447,1711528233663,-216.24554068,0.00039289,2]
[320714448,1711528233673,-216.24554068,0.0003929,2]
[320714449,1711528233682,-216.24554068,0.0003929,2]
[320714450,1711528233691,-599.09,0.000393,2]
[320714451,1711528233700,-3542.09130113,0.000393,2]
[320714452,1711528233710,-216.24554068,0.0003938,2]
[320714453,1711528233719,-216.24554068,0.0003938,2]
[320714454,1711528233729,-216.24554068,0.0003938,2]
[320714455,1711528233738,-240.34,0.0003939,2]
[320714456,1711528233748,-240.34,0.0003939,2]
[320714457,1711528233758,-216.24554068,0.0003939,2]
[320714458,1711528233768,-240.34,0.0003939,2]
[320714459,1711528233777,-216.24554068,0.0003939,2]
[320714460,1711528233786,-240.34,0.0003939,2]
[320714461,1711528233797,-216.24554068,0.0003939,2]
[320714462,1711528233805,-216.24554068,0.0003939,2]
[320714463,1711528233817,-240.34,0.0003939,2]
[320714464,1711528233828,-216.24554068,0.0003939,2]
[320714465,1711528233837,-240.34,0.0003939,2]
[320714466,1711528233847,-216.24554068,0.0003939,2]
[320714467,1711528233858,-240.34,0.0003939,2]
[320714468,1711528233868,-216.24554068,0.0003939,2]
[320714469,1711528233878,-216.24554068,0.0003939,2]
[320714470,1711528233887,-240.34,0.0003939,2]
[320714471,1711528233898,-216.24554068,0.0003939,2]
[320714472,1711528233907,-216.24554068,0.0003939,2]
[320714473,1711528233917,-216.24554068,0.0003939,2]
[320714474,1711528233926,-216.24554068,0.0003939,2]
[320714475,1711528233936,-216.24554068,0.0003939,2]
[320714476,1711528233949,-216.24554068,0.0003939,2]
[320714477,1711528233960,-216.24554068,0.0003939,2]
[320714478,1711528233969,-216.24554068,0.0003939,2]
[320714479,1711528233980,-216.24554068,0.0003939,2]
[320714480,1711528233991,-216.24554068,0.0003939,2]
[320714481,1711528234001,-164.62650338,0.0003939,2]
[320714482,1711528234011,-216.24554068,0.0003939,2]
[320714483,1711528234022,-216.24554068,0.0003939,2]
[320714484,1711528234032,-216.24554068,0.0003939,2]
[320714485,1711528234041,-216.24554068,0.0003939,2]
[320714486,1711528234051,-89470.67245638,0.000394,30]
[320714487,1711528234060,-43362.72348195,0.000394,30]
[320714488,1711528234072,-499.82108375,0.000394,30]
[320714489,1711528234090,-6438.54181806,0.000394,30]
[320714498,1711528238287,-271.94,0.00038864,15]
[320714499,1711528238509,-117.62165325,0.00038864,15]
[320714500,1711528238522,-216.24554068,0.0003939,2]
[320714501,1711528238534,-216.24554068,0.0003939,2]
[320714502,1711528238547,-216.24554068,0.0003939,2]
[320714503,1711528238560,-216.24554068,0.0003939,2]
[320714504,1711528238572,-216.24554068,0.0003939,2]
[320714505,1711528238583,-216.24554068,0.0003939,2]
[320714506,1711528238595,-216.24554068,0.0003939,2]
[320714507,1711528238608,-216.24554068,0.0003939,2]
[320714508,1711528238621,-216.24554068,0.0003939,2]
[320714510,1711528238631,-216.24554068,0.0003939,2]
[320714512,1711528238643,-216.24554068,0.0003939,2]
[320714514,1711528238655,-216.24554068,0.0003939,2]
[320714516,1711528238667,-216.24554068,0.0003939,2]
[320714517,1711528238678,-216.24554068,0.0003939,2]
[320714518,1711528238690,-216.24554068,0.0003939,2]
[320714519,1711528238701,-133.34523655,0.0003939,2]
[320714520,1711528238733,-82.90030413,0.0003939,2]
[320714521,1711528238745,-216.24554068,0.0003939,2]
[320714522,1711528238758,-216.24554068,0.0003939,2]
[320714523,1711528238771,-216.24554068,0.0003939,2]
[320714524,1711528238782,-216.24554068,0.0003939,2]
[320714525,1711528238795,-216.24554068,0.0003939,2]
[320714526,1711528238808,-216.24554068,0.0003939,2]
[320714527,1711528238819,-216.24554068,0.0003939,2]
[320714528,1711528238831,-216.24554068,0.0003939,2]
[320714529,1711528238842,-216.24554068,0.0003939,2]
[320714530,1711528238853,-216.24554068,0.0003939,2]
[320714531,1711528238865,-216.24554068,0.0003939,2]
[320714532,1711528238877,-216.24554068,0.0003939,2]
[320714533,1711528238889,-216.24554068,0.0003939,2]
[320714534,1711528238901,-216.24554068,0.0003939,2]
[320714535,1711528238913,-216.24554068,0.0003939,2]
[320714536,1711528238926,-216.24554068,0.0003939,2]
[320714537,1711528238937,-216.24554068,0.0003939,2]
[320714538,1711528238951,-216.24554068,0.0003939,2]
[320714539,1711528238966,-216.24554068,0.0003939,2]
[320714540,1711528238977,-216.24554068,0.0003939,2]
[320714541,1711528238990,-216.24554068,0.0003939,2]
[320714542,1711528239002,-281.20442799,0.00039399,15]
[320714543,1711528239013,-434.17087452,0.00039399,15]
[320714544,1711528239026,-500.0,0.00039399,15]
[320714545,1711528239040,-500.0,0.00039399,15]
[320714546,1711528239053,-206.92732928,0.00039399,15]
[320714547,1711528239065,-828449.22693307,0.000394,30]
[320714548,1711528239081,-574249.68668317,0.000394,30]
[320714549,1711528239093,-610.02103062,0.00039488,14]
[320714550,1711528239104,-1948.04964111,0.00039588,2]
[320714551,1711528239116,-2233.37363249,0.00039798,9]
[320714552,1711528239128,-166.09133163,0.00039998,4]
[320714553,1711528239140,-4460.93932882,0.00039998,4]
[320714554,1711528239152,-1034.7094258,0.00039998,4]
[320714555,1711528239163,-3357.71176501,0.0004,4]
[320714556,1711528239175,-4753.15701994,0.0004,4]
[320714557,1711528239187,-5743.01202704,0.0004,4]
[320714558,1711528239200,-7937.94912886,0.0004,4]
[320714559,1711528239213,-10431.7034283,0.0004,7]
[320714560,1711528239226,-892.02580912,0.0004,30]
[320714561,1711528239238,-150.0,0.00040019,120]
[320714562,1711528239250,-170.09,0.00040204,2]
[320714563,1711528239262,-593.25,0.00040755,2]
[320714564,1711528239275,-7207.13181068,0.00040755,14]
[320714565,1711528239286,-593.25,0.00040765,2]
[320714566,1711528239298,-593.25,0.00040776,2]
[320714567,1711528239310,-593.25,0.00040787,2]
[320714568,1711528239322,-593.25,0.00040798,2]
[320714569,1711528239333,-593.25,0.00040808,2]
[320714570,1711528239345,-593.25,0.00040819,2]
[320714571,1711528239357,-593.25,0.0004083,2]
[320714572,1711528239369,-593.25,0.0004084,2]
[320714573,1711528239380,-180.0,0.00040846,2]
[320714574,1711528239391,-593.25,0.00040851,2]
[320714575,1711528239403,-593.25,0.00040862,2]
[320714576,1711528239414,-593.25,0.00040872,2]
[320714577,1711528239425,-593.25,0.00040883,2]
[320714578,1711528239436,-593.25,0.00040894,2]
[320714579,1711528239448,-593.25,0.00040905,2]
[320714580,1711528239460,-593.25,0.00040915,2]
[320714581,1711528239471,-593.25,0.00040926,2]
[320714582,1711528239480,-593.25,0.00040937,2]
[320714583,1711528239489,-593.25,0.00040947,2]
[320714584,1711528239498,-593.25,0.00040958,2]
[320714585,1711528239507,-7841.77272824,0.00041,4]
[320714586,1711528239517,-183.0,0.00041096,2]
[320714587,1711528239528,-3542.09130113,0.00041315,2]
[320714588,1711528239537,-244.34,0.00041484,120]
[320714589,1711528239546,-599.09,0.00041563,2]
[320714590,1711528239555,-1948.04964109,0.00041632,2]
[320714591,1711528239565,-155.66,0.00041993,120]
[320714592,1711528239574,-2233.37363248,0.00042161,10]
[320714593,1711528239584,-1000.0,0.00042343,2]
[320714594,1711528239595,-7207.13181068,0.00042642,17]
[320714595,1711528239900,-159.59,0.00042703,2]
[320714596,1711528239920,-3542.09130113,0.0004333,2]
[320714597,1711528239930,-1948.04964109,0.00043676,2]
[320714598,1711528239939,-150.0,0.00043761,120]
[320714599,1711528239949,-599.09,0.00043827,2]
[320714600,1711528239962,-150.0,0.00044114,120]
[320714601,1711528239971,-22077.78,0.00044319,30]
[320714602,1711528239980,-630.29814932,0.00044425,7]
[320714603,1711528239991,-630.29814931,0.00044425,7]
[320714604,1711528240000,-2233.37363248,0.00044524,11]
[320714605,1711528240010,-7207.13181068,0.00044529,19]
[320714606,1711528240019,-240.34,0.0004499,2]
[320714607,1711528240030,-22038.94073476,0.00045,4]
[320714608,1711528240040,-339.22517766,0.00045,10]
[320714609,1711528240051,-1000.0,0.00045,120]
[320714610,1711528240060,-500.0,0.00045,14]
[320714611,1711528240070,-3542.09130113,0.00045345,2]
[320714612,1711528240079,-1948.04964109,0.00045719,2]
[320714613,1711528240088,-599.09,0.00046091,2]
[320714614,1711528240097,-159.59,0.00046227,2]
[320714615,1711528240107,-206.29615,0.00046301,14]
[320714616,1711528240116,-7207.13181068,0.00046416,22]
[320714617,1711528240126,-155.66,0.00046659,120]
[320714618,1711528240136,-244.34,0.00046669,120]
[320714619,1711528240145,-2233.37363248,0.00046887,13]
[320714621,1711528240155,-1000.0,0.00047048,2]
[320714623,1711528240164,-206.29615,0.00047123,14]
[320714625,1711528240174,-3542.09130113,0.0004736,2]
[320714627,1711528240183,-160.13519834,0.00047565,30]
[320714629,1711528240192,-1948.04964109,0.00047763,2]
[320714632,1711528240201,-205.46475725,0.00047809,20]
[320714635,1711528240211,-151.2092574,0.00047897,30]
[320714637,1711528240221,-90662.75609396,0.00047919,7]
[320714640,1711528240230,-206.29615,0.00047945,14]
[320714642,1711528240240,-1226.68,0.00047991,120]
[320714644,1711528240249,-157.25738244,0.00047994,30]
[320714647,1711528240258,-503.6111413,0.00048,100]
[320714650,1711528240268,-560.75087012,0.00048,4]
[320714653,1711528240278,-161.83589466,0.00048076,30]
[320714656,1711528240287,-7207.13181068,0.00048303,24]
[320714659,1711528240297,-156.40801094,0.00048332,30]
[320714662,1711528240306,-599.09,0.00048355,2]
[320714665,1711528240316,-5157.75,0.00048682,120]
[320714668,1711528240325,-1111.0,0.000487,4]
[320714671,1711528240335,-854.63911886,0.00048751,10]
[320714674,1711528240344,-155.0,0.00048752,2]
[320714677,1711528240354,-10000.0,0.00048753,30]
[320714679,1711528240363,-206.29615,0.00048767,14]
[320714682,1711528240372,-709.36350887,0.00048798,10]
[320714685,1711528240382,-179.27503494,0.000488,120]
[320714687,1711528240390,-182.21320044,0.000488,25]
[320714689,1711528240399,-164.90083735,0.000488,2]
[320714691,1711528240409,-152.40530738,0.000488,40]
[320714693,1711528240419,-600.0,0.000488,17]
[320714695,1711528240428,-724.58036363,0.000488,2]
[320714697,1711528240437,-610.13446212,0.000488,2]
[320714699,1711528240446,-3037.33664816,0.000488,2]
[320714701,1711528240455,-240.34,0.0004887,2]